fUSD/lending_fUSD_20240203
["ID","MTS","AMOUNT","RATE_DAILY","PERIOD"]
[313212886,1706957446510,-1381.27738556,0.00022898,2]
[313212887,1706957446522,-431.885,0.00022898,2]
[313212888,1706957446535,-33580.44027106,0.00022898,2]
[313212889,1706957446546,-500.0,0.00022898,2]
[313212890,1706957446555,-500.0,0.00022898,2]
[313212891,1706957446566,-500.0,0.00022899,2]
[313212892,1706957446578,-500.0,0.00022899,2]
[313212893,1706957446587,-500.0,0.00022899,2]
[313212894,1706957446597,-500.0,0.00022899,2]
[313212895,1706957446608,-500.0,0.00022899,2]
[313212896,1706957446617,-516.04723168,0.00022899,2]
[313212897,1706957446626,-500.0,0.00022899,2]
[313212898,1706957446635,-500.0,0.00022899,2]
[313212899,1706957446645,-500.0,0.00022899,2]
[313212900,1706957446655,-607.21,0.00022899,2]
[313212901,1706957446668,-500.0,0.00022899,2]
[313212903,1706957446714,-787.58,0.00022899,2]
[313212904,1706957446723,-500.0,0.00022899,2]
[313212905,1706957446734,-500.0,0.00022899,2]
[313212906,1706957446743,-500.0,0.00022899,2]
[313212907,1706957446752,-171.64985738,0.00022899,2]
[313212908,1706957446762,-500.0,0.00022899,2]
[313212909,1706957446773,-372.20653449,0.00022899,2]
[313212910,1706957446784,-500.0,0.00022899,2]
[313212911,1706957446794,-1416.05960304,0.00022899,2]
[313212912,1706957446808,-293.31908832,0.00022899,2]
[313212913,1706957446821,-763.17130864,0.00022899,2]
[313212914,1706957446832,-500.0,0.00022899,2]
[313212915,1706957446842,-500.0,0.00022899,2]
[313212916,1706957446852,-120.57010617,0.00022899,2]
[313212917,1706957446866,-379.42989383,0.00022899,2]
[313212918,1706957446876,-295.3644019,0.00022899,2]
[313212919,1706957446889,-204.6355981,0.00022899,2]
[313212920,1706957446899,-500.0,0.00022899,2]
[313212921,1706957446909,-500.0,0.00022899,2]
[313212922,1706957446919,-500.0,0.00022899,2]
[313212923,1706957446929,-500.0,0.00022899,2]
[313212924,1706957446939,-230.5011776,0.00022899,2]
[313212925,1706957446951,-269.4988224,0.00022899,2]
[313212926,1706957446960,-972.73,0.00022899,2]
[313212927,1706957446970,-500.0,0.00022899,2]
[313212928,1706957446980,-428.75338265,0.00022899,2]
[313212929,1706957447000,-71.24661735,0.00022899,2]
[313212930,1706957447010,-189.88638265,0.00022899,2]
[313212931,1706957447027,-310.11361735,0.00022899,2]
[313212932,1706957447037,-34.22710505,0.00022899,2]
[313212933,1706957447056,-465.77289495,0.00022899,2]
[313212934,1706957447066,-500.0,0.00022899,2]
[313212935,1706957447076,-500.0,0.00022899,2]
[313212936,1706957447086,-500.0,0.00022899,2]
[313212937,1706957447095,-334.79367899,0.00022899,2]
[313212938,1706957447109,-165.20632101,0.00022899,2]
[313212939,1706957447119,-535.26,0.00022899,2]
[313212940,1706957447128,-500.0,0.00022899,2]
[313212941,1706957447138,-293.96842215,0.00022899,2]
[313212942,1706957447150,-206.03157785,0.00022899,2]
[313212943,1706957447160,-1412.64,0.00022899,2]
[313212944,1706957447170,-952.32,0.00022899,2]
[313212945,1706957447180,-500.0,0.00022899,2]
[313212946,1706957447190,-500.0,0.00022899,2]
[313212947,1706957447200,-500.0,0.00022899,2]
[313212948,1706957447209,-766.82,0.00022899,2]
[313212949,1706957447219,-500.0,0.00022899,2]
[313212950,1706957447229,-500.0,0.00022899,2]
[313212951,1706957447238,-500.0,0.00022899,2]
[313212952,1706957447248,-707.06,0.00022899,2]
[313212953,1706957447257,-500.0,0.00022899,2]
[313212954,1706957447267,-500.0,0.00022899,2]
[313212955,1706957447276,-3335.1284221,0.00022899,2]
[313212956,1706957448323,-7558.8715779,0.00022899,2]
[313212957,1706957448332,-500.76,0.00022899,2]
[313212958,1706957448342,-500.0,0.00022899,2]
[313212959,1706957448352,-500.0,0.00022899,2]
[313212960,1706957448361,-500.0,0.00022899,2]
[313212961,1706957448371,-500.0,0.00022899,2]
[313212962,1706957448381,-500.0,0.00022899,2]
[313212963,1706957448390,-560.51,0.00022899,2]
[313212964,1706957448399,-500.0,0.00022899,2]
[313212965,1706957448408,-500.0,0.00022899,2]
[313212966,1706957448417,-1501.47,0.00022899,2]
[313212967,1706957448427,-500.0,0.00022899,2]
[313212968,1706957448436,-500.0,0.00022899,2]
[313212969,1706957448446,-500.0,0.00022899,2]
[313212970,1706957448456,-500.0,0.00022899,2]
[313212971,1706957448466,-500.0,0.00022899,2]
[313212972,1706957448479,-500.0,0.00022899,2]
[313212973,1706957448488,-500.0,0.00022899,2]
[313212974,1706957448497,-500.0,0.00022899,2]
[313212975,1706957448507,-500.0,0.00022899,2]
[313212976,1706957448516,-500.0,0.00022899,2]
[313212977,1706957448527,-645.43,0.00022899,2]
[313212978,1706957448536,-500.0,0.00022899,2]
[313212979,1706957448546,-500.0,0.00022899,2]
[313212980,1706957448556,-500.0,0.00022899,2]
[313212981,1706957448566,-500.0,0.00022899,2]
[313212982,1706957448575,-958.67,0.00022899,2]
[313212983,1706957448584,-500.0,0.00022899,2]
[313212984,1706957448594,-500.0,0.00022899,2]
[313212985,1706957448604,-500.0,0.00022899,2]
[313212986,1706957448613,-500.0,0.00022899,2]
[313212987,1706957448622,-991.77,0.00022899,2]
[313212988,1706957448631,-1132.58,0.00022899,2]
[313212989,1706957448641,-500.0,0.00022899,2]
[313212990,1706957448650,-500.0,0.00022899,2]
[313212991,1706957448659,-761.22,0.00022899,2]
[313212992,1706957448669,-500.0,0.00022899,2]
[313212993,1706957448678,-500.0,0.00022899,2]
[313212994,1706957448687,-11004.78,0.00022899,2]
[313212995,1706957448696,-911.79,0.00022899,2]
[313212996,1706957448705,-500.0,0.00022899,2]
[313212997,1706957448714,-500.0,0.00022899,2]
[313212998,1706957448724,-1592.51,0.00022899,2]
[313212999,1706957448734,-607.44,0.00022899,2]
[313213000,1706957448743,-500.0,0.00022899,2]
[313213001,1706957448753,-628.02,0.00022899,2]
[313213002,1706957448764,-500.0,0.00022899,2]
[313213003,1706957448774,-500.0,0.00022899,2]
[313213004,1706957448783,-2654.25,0.00022899,2]
[313213005,1706957448792,-500.0,0.00022899,2]
[313213006,1706957448801,-644.62,0.00022899,2]
[313213007,1706957448810,-130168.21005238,0.000229,2]
[313213008,1706957448823,-791.65526421,0.000229,2]
[313213009,1706957464014,553.69,0.00022164,2]
[313213010,1706957500474,154.99,0.00020152,2]
[313213011,1706957513521,1094.72606878,0.0002,7]
[313213012,1706957551746,158.73,0.00022202,2]
[313213013,1706957551951,158.73,0.00022492,2]
[313213014,1706957559542,2480.0,0.00022,2]
[313213015,1706957831995,180.34,0.00021892,2]
[313213016,1706957899582,557.04,0.00021892,2]
[313213018,1706957960877,166.05,0.00020011,2]
[313213019,1706957962336,167.55,0.00022093,2]
[313213020,1706957962652,167.55,0.00022324,2]
[313213021,1706958010866,500.0,0.000219,2]
[313213022,1706958039399,852.70707503,0.00022196,2]
[313213024,1706958324312,275.79,0.00021893,2]
[313213025,1706958369674,613.40045975,0.00022196,2]
[313213026,1706958370380,554.36,0.00021892,2]
[313213027,1706958390225,1500.0,0.000225,2]
[313213028,1706958393426,533.90351792,0.00022499,2]
[313213029,1706958447048,150.99,0.00019985,2]
[313213051,1706958625626,156.58,0.00022056,2]
[313213052,1706958625843,156.58,0.00022128,2]
[313213053,1706958626065,156.58,0.000222,2]
[313213054,1706958626408,156.58,0.00022272,2]
[313213055,1706958626482,156.58,0.00022344,2]
[313213056,1706958626706,156.58,0.00022415,2]
[313213057,1706958626923,156.58,0.00022487,2]
[313213080,1706958631518,-533.90351792,0.00022534,2]
[313213081,1706958631527,-1179.13383819,0.00022534,2]
[313213082,1706958631538,-393.45872412,0.00022534,2]
[313213083,1706958631550,-541.24591888,0.00022534,2]
[313213084,1706958631561,-1130.50365242,0.00022534,2]
[313213085,1706958631622,-397.08340281,0.00022534,2]
[313213086,1706958631642,-525.25069582,0.00022534,2]
[313213087,1706958631652,-690.6355419,0.00022535,2]
[313213088,1706958631661,-300.0,0.00022537,2]
[313213089,1706958631670,-150.0,0.00022537,2]
[313213090,1706958631679,-1420.03984954,0.00022538,2]
[313213091,1706958631740,-334.84098344,0.00022538,2]
[313213092,1706958631757,-1720.05650381,0.00022538,2]
[313213096,1706958631785,-265.0000001,0.00022538,2]
[313213098,1706958631796,-472.38437692,0.00022538,2]
[313213101,1706958631808,-10296.81120001,0.00022538,2]
[313213104,1706958631819,-3060.50973781,0.00022538,2]
[313213415,1706958640685,-13055.48900252,0.00022533,2]
[313213417,1706958640695,-6947.8721276,0.00022539,2]
[313213420,1706958640705,-284.02379985,0.00022553,2]
[313213422,1706958640714,-156.58,0.00022559,2]
[313213424,1706958640723,-156.58,0.00022631,2]
[313213426,1706958640733,-247.42374992,0.00022669,2]
[313213428,1706958640741,-500.0,0.000227,2]
[313213430,1706958640751,-206.5926,0.000227,2]
[313213432,1706958640760,-19759.189,0.000227,2]
[313213434,1706958640769,-251.9871,0.000227,2]
[313213436,1706958640778,-156.58,0.00022703,2]
[313213438,1706958640788,-1162.63,0.00022768,2]
[313213440,1706958640798,-2592.73,0.00022768,2]
[313213442,1706958640807,-700.14,0.00022768,2]
[313213444,1706958640816,-156.58,0.00022775,2]
[313213446,1706958640826,-548.96,0.0002278,2]
[313213448,1706958640835,-11792.4419183,0.00022788,2]
[313213450,1706958640845,-19351.3092,0.00022798,2]
[313213452,1706958640856,-10991.9951,0.000228,2]
[313213454,1706958640866,-156.58,0.00022846,2]
[313213456,1706958640875,-236.0,0.00022879,2]
[313213458,1706958640884,-428.0,0.00022879,2]
[313213459,1706958640896,-1001.0,0.00022879,2]
[313213462,1706958640905,-1941.0,0.00022879,2]
[313213464,1706958640914,-320.0,0.00022879,2]
[313213466,1706958640923,-150.0,0.00022879,2]
[313213468,1706958640933,-444.0,0.00022879,2]
[313213470,1706958640942,-1000.0,0.00022886,2]
[313213472,1706958640951,-203.40594176,0.00022887,2]
[313213474,1706958640961,-203.40594172,0.00022889,2]
[313213476,1706958640970,-203.40594172,0.00022891,2]
[313213493,1706958640980,-203.40594172,0.00022893,2]
[313213496,1706958641139,-203.40594172,0.00022894,2]
[313213498,1706958641149,-203.40594172,0.00022896,2]
[313213500,1706958641158,-767.91719835,0.00022898,2]
[313213502,1706958641168,-291.02911606,0.00022898,2]
[313213504,1706958641177,-245.10370524,0.00022898,2]
[313213506,1706958641186,-1088.33,0.00022898,2]
[313213508,1706958641195,-500.0,0.00022898,2]
[313213510,1706958641204,-864.42,0.00022898,2]
[313213512,1706958641213,-500.0,0.00022898,2]
[313213514,1706958641222,-445.2894782,0.00022898,2]
[313213516,1706958641231,-203.40594172,0.00022898,2]
[313213518,1706958641240,-445.28947816,0.00022898,2]
[313213520,1706958641250,-445.28947816,0.00022898,2]
[313213522,1706958641259,-445.28947816,0.00022899,2]
[313213524,1706958641268,-445.28947816,0.00022899,2]
[313213526,1706958641277,-445.28947816,0.00022899,2]
[313213528,1706958641286,-103.70597099,0.00022899,2]
[313213530,1706958641298,-396.29402901,0.00022899,2]
[313213533,1706958641311,-500.0,0.00022899,2]
[313213535,1706958641319,-329.27275687,0.00022899,2]
[313213538,1706958641340,-116.01672129,0.00022899,2]
[313213540,1706958641350,-445.28947816,0.00022899,2]
[313213542,1706958641359,-134.55325755,0.00022899,2]
[313213546,1706958641387,-310.73622061,0.00022899,2]
[313213548,1706958641396,-34.85004364,0.000229,2]
[313213550,1706958641407,-339.77232955,0.000229,2]
[313213654,1706958642456,-70.66710497,0.000229,2]
[313213656,1706958642467,-210.0,0.000229,2]
[313213658,1706958642476,-5000.0,0.000229,2]
[313213660,1706958642486,-445.28947816,0.000229,2]
[313213662,1706958642495,-1011.2,0.000229,2]
[313213664,1706958642504,-423.3,0.000229,2]
[313213666,1706958642514,-200.0,0.000229,2]
[313213668,1706958642523,-332.33449326,0.000229,2]
[313213673,1706958642563,-541.88479081,0.000229,2]
[313213674,1706958642620,-278.23520205,0.000229,2]
[313213675,1706958642631,-637.48131769,0.000229,2]
[313213676,1706958642640,-86.02107227,0.000229,2]
[313213677,1706958642652,-359.26840589,0.000229,2]
[313213678,1706958642661,-50.52614929,0.000229,2]
[313213680,1706958642679,-101.85981739,0.000229,2]
[313213681,1706958642688,-996.56036803,0.000229,2]
[313213682,1706958642699,-455.53963197,0.000229,2]
[313213683,1706958642708,-203.40594172,0.000229,2]
[313213684,1706958642718,-708.85630893,0.000229,2]
[313213685,1706958642736,-262.63927071,0.000229,2]
[313213693,1706958645560,-990.7898335,0.000229,2]
[313213694,1706958645722,-851.25351294,0.000229,2]
[313213695,1706958645733,-245.80466668,0.000229,2]
[313213696,1706958645743,-2000.0,0.000229,2]
[313213697,1706958645753,-200.0,0.000229,2]
[313213698,1706958645763,-193.41510432,0.000229,2]
[313213699,1706958645773,-500.0,0.00022916,2]
[313213700,1706958645783,-500.0,0.00022916,2]
[313213701,1706958645792,-500.0,0.00022916,2]
[313213702,1706958645802,-642.05,0.00022916,2]
[313213703,1706958645812,-783.89,0.00022916,2]
[313213704,1706958645822,-508.22798292,0.00022916,2]
[313213705,1706958645831,-526.66,0.00022916,2]
[313213706,1706958645841,-500.0,0.00022916,2]
[313213707,1706958645851,-500.0,0.00022916,2]
[313213708,1706958645863,-521.33,0.00022916,2]
[313213709,1706958645872,-500.0,0.00022916,2]
[313213710,1706958645881,-500.0,0.00022916,2]
[313213711,1706958645899,-548.91,0.00022916,2]
[313213712,1706958645909,-500.0,0.00022916,2]
[313213713,1706958645918,-547.63,0.00022916,2]
[313213714,1706958645928,-1006.97,0.00022916,2]
[313213715,1706958645940,-500.0,0.00022916,2]
[313213716,1706958645949,-990.96,0.00022916,2]
[313213717,1706958645958,-9.55051836,0.00022918,2]
[313213718,1706958645979,-147.02948164,0.00022918,2]
[313213719,1706958645987,-709.35450076,0.00022939,2]
[313213720,1706958646006,-736.19737716,0.00022939,2]
[313213721,1706958646027,-836.44812208,0.00022939,2]
[313213722,1706958646036,-1822.842,0.00022939,2]
[313213723,1706958646045,-1201.516,0.00022939,2]
[313213724,1706958646054,-1034.0,0.00022939,2]
[313213726,1706958646063,-760.58232142,0.0002297,2]
[313213727,1706958646072,-533.90351792,0.00022984,2]
[313213728,1706958646081,-550.91,0.00022985,2]
[313213729,1706958646090,-523.04,0.00022985,2]
[313213730,1706958646099,-500.0,0.00022985,7]
[313213731,1706958646108,-500.0,0.00022985,2]
[313213732,1706958646118,-500.0,0.00022985,2]
[313213733,1706958646127,-500.0,0.00022985,2]
[313213734,1706958646136,-500.0,0.00022985,2]
[313213735,1706958646146,-500.0,0.00022985,2]
[313213736,1706958646155,-500.0,0.00022985,2]
[313213737,1706958646164,-500.0,0.00022985,2]
[313213738,1706958646173,-96.75803823,0.00022985,2]
[313213739,1706958669911,1630.93383567,0.00022196,2]
[313213740,1706958693747,300.0,0.000223,8]
[313213741,1706958695884,600.0,0.000224,8]
[313213742,1706958707312,3197.13386433,0.00022064,2]
[313213743,1706958713360,1233.63754547,0.00022294,2]
[313213744,1706958713545,1080.70099796,0.00020685,2]
[313213745,1706958714262,4166.67623224,0.00022499,2]
[313213746,1706958720452,533.90351792,0.00022499,2]
[313213747,1706958726979,301.856441,0.00022387,2]
[313213748,1706958727771,155.0,0.00020687,2]
[313213749,1706958730317,-1000.0,0.000225,8]
[313213750,1706958745534,166.06,0.00022004,2]
[313213751,1706958747306,356.64347884,0.00022064,2]
[313213752,1706958747612,156.61149724,0.00019858,2]
[313213753,1706958754365,150.0,0.00022,2]
[313213754,1706958768596,304.74826577,0.00021,2]
[313213755,1706958773743,2250.0,0.00022,3]
[313213756,1706958775737,1035.67,0.00021982,2]
[313213757,1706958777508,556.51,0.00021982,2]
[313213758,1706958796445,185.76,0.00021982,2]
[313213759,1706958802653,330.67,0.00021978,2]
[313213760,1706958838031,200.0,0.00021967,2]
[313213761,1706958852271,150.0,0.0002162,2]
[313213762,1706958852472,150.0,0.0002228,2]
[313213763,1706958853421,172.99,0.00020053,2]
[313213764,1706958853639,172.99,0.00022317,2]
[313213765,1706959028283,1600.0,0.00021937,2]
[313213766,1706959048507,153.61,0.00022102,2]
[313213767,1706959048703,153.61,0.00022169,2]
[313213768,1706959049103,153.61,0.00022237,2]
[313213769,1706959049501,153.61,0.00022305,2]
[313213770,1706959049725,153.61,0.00022373,2]
[313213771,1706959049913,153.61,0.0002244,2]
[313213772,1706959173992,207.0,0.000219,2]
[313213773,1706959198213,554.79,0.0002186,2]
[313213774,1706959198594,863.05,0.00021852,2]
[313213775,1706959227924,157.34155024,0.00022445,2]
[313213776,1706959280876,150.0,0.00022474,2]
[313213777,1706959298621,155.69,0.00019964,2]
[313213778,1706959298841,155.69,0.00022228,2]
[313213779,1706959329626,383.71818377,0.00022196,2]
[313213780,1706959476979,153.61,0.0002203,2]
[313213781,1706959477178,153.61,0.00022134,2]
[313213782,1706959477426,153.61,0.00022238,2]
[313213783,1706959477629,153.61,0.00022343,2]
[313213784,1706959477859,153.61,0.00022447,2]
[313213785,1706959510423,500.0,0.000219,2]
[313213786,1706959618066,556.16,0.00021913,2]
[313213787,1706959635139,-533.90351792,0.00022543,2]
[313213788,1706959635167,-3346.09648208,0.00022544,2]
[313213789,1706959638135,719.2,0.00021913,2]
[313213790,1706959659911,295.21611607,0.00022196,2]
[313213791,1706959707729,155.69,0.0001999,2]
[313213832,1706959834165,-533.90351792,0.00022515,2]
[313213833,1706959834175,-208.55727642,0.00022516,2]
[313213834,1706959834184,-4166.67623224,0.00022519,2]
[313213835,1706959834194,-155.69,0.0002252,2]
[313213836,1706959834203,-2289.89691447,0.00022524,2]
[313213837,1706959834215,-459.2369133,0.00022524,2]
[313213838,1706959834227,-312.06068321,0.00022524,2]
[313213839,1706959834238,-381.79850293,0.00022524,2]
[313213840,1706959834254,-1291.032,0.00022524,2]
[313213841,1706959834276,-438.73888158,0.00022524,2]
[313213842,1706959834288,-7117.23610451,0.00022524,2]
[313213843,1706959834297,-153.61,0.00022551,2]
[313213844,1706959834306,-300.0033,0.00022588,2]
[313213845,1706959834316,-153.61,0.00022656,2]
[313213846,1706959834327,-19098.0,0.000227,2]
[313213847,1706959834336,-3460.0,0.000227,2]
[313213849,1706959834345,-3571.8230791,0.00022753,2]
[313213851,1706959834356,-151.72326338,0.00022753,2]
[313213853,1706959834366,-414.32805963,0.00022753,2]
[313213855,1706959834375,-247.32726579,0.00022753,2]
[313213856,1706959834383,-155.0,0.00022753,2]
[313213858,1706959834393,-281.28534164,0.00022753,2]
[313213860,1706959834402,-400.82572959,0.00022755,2]
[313213862,1706959834411,-153.61,0.0002276,2]
[313213864,1706959834420,-934.2019,0.00022784,2]
[313213866,1706959834429,-1000.0,0.00022784,2]
[313213868,1706959834439,-669.83535315,0.00022784,2]
[313213870,1706959834450,-795.27092561,0.00022784,2]
[313213873,1706959834462,-1034.89372124,0.00022784,2]
[313213874,1706959834472,-156.90435776,0.00022784,2]
[313213876,1706959834481,-153.61,0.00022864,2]
[313213878,1706959834491,-1975.33357796,0.00022882,2]
[313213881,1706959834506,-526.86938042,0.00022882,2]
[313213883,1706959834515,-166.39427198,0.00022882,2]
[313213885,1706959834524,-755.4893785,0.00022882,2]
[313213887,1706959834536,-612.52785032,0.00022882,2]
[313213889,1706959834545,-544.25144522,0.00022883,2]
[313213891,1706959834554,-548.8,0.00022883,2]
[313213893,1706959834563,-500.0,0.00022883,2]
[313213895,1706959834574,-174.77330579,0.00022883,7]
[313213897,1706959834583,-493.47026978,0.00022883,2]
[313213898,1706959834592,-500.0,0.00022883,2]
[313213899,1706959834601,-500.0,0.00022883,2]
[313213900,1706959834610,-500.0,0.00022883,2]
[313213901,1706959834619,-500.0,0.00022883,2]
[313213902,1706959834628,-500.0,0.00022883,2]
[313213903,1706959834637,-500.0,0.00022883,2]
[313213904,1706959834647,-500.0,0.00022883,2]
[313213905,1706959834657,-500.0,0.00022883,2]
[313213906,1706959834667,-581.91,0.00022883,2]
[313213907,1706959834678,-500.0,0.00022883,2]
[313213908,1706959834688,-500.0,0.00022883,2]
[313213909,1706959834697,-754.77,0.00022883,2]
[313213910,1706959834707,-500.0,0.00022883,2]
[313213911,1706959834716,-835.92,0.00022883,2]
[313213912,1706959834725,-500.0,0.00022883,2]
[313213913,1706959834735,-617.76,0.00022883,2]
[313213914,1706959834745,-567.69,0.00022883,2]
[313213915,1706959834754,-932.2,0.00022883,2]
[313213916,1706959834764,-500.0,0.00022883,2]
[313213917,1706959834773,-500.0,0.00022883,2]
[313213918,1706959834782,-500.0,0.00022883,2]
[313213919,1706959834792,-500.0,0.00022883,2]
[313213920,1706959834801,-500.0,0.00022883,2]
[313213921,1706959834811,-500.0,0.00022883,2]
[313213922,1706959834821,-500.0,0.00022883,2]
[313213923,1706959834830,-500.0,0.00022883,2]
[313213924,1706959834840,-1964.28,0.00022883,2]
[313213925,1706959834850,-500.0,0.00022883,2]
[313213926,1706959834859,-500.0,0.00022883,2]
[313213927,1706959834869,-500.0,0.00022883,2]
[313213928,1706959834879,-500.0,0.00022883,2]
[313213929,1706959834889,-500.0,0.00022883,2]
[313213930,1706959834898,-500.0,0.00022883,2]
[313213931,1706959834908,-569.44,0.00022883,2]
[313213932,1706959834917,-1353.78,0.00022883,2]
[313213933,1706959834927,-500.0,0.00022883,2]
[313213934,1706959834936,-500.0,0.00022883,2]
[313213935,1706959834946,-500.0,0.00022883,2]
[313213936,1706959834955,-500.0,0.00022883,2]
[313213937,1706959834965,-643.01,0.00022883,2]
[313213938,1706959834975,-2195.1,0.00022883,2]
[313213939,1706959834985,-500.0,0.00022883,2]
[313213940,1706959834994,-500.0,0.00022883,2]
[313213941,1706959835004,-596.16,0.00022883,2]
[313213942,1706959835013,-500.0,0.00022883,2]
[313213943,1706959835022,-10440.09,0.00022883,2]
[313213944,1706959835032,-512.95,0.00022883,2]
[313213945,1706959835041,-500.0,0.00022883,2]
[313213946,1706959835051,-500.0,0.00022883,2]
[313213947,1706959835060,-735.68,0.00022883,2]
[313213948,1706959835069,-500.0,0.00022883,2]
[313213949,1706959835079,-500.0,0.00022883,2]
[313213950,1706959835090,-500.0,0.00022883,2]
[313213951,1706959835099,-912.64,0.00022883,2]
[313213952,1706959835109,-500.0,0.00022883,2]
[313213953,1706959835119,-500.0,0.00022883,2]
[313213954,1706959835128,-500.0,0.00022883,2]
[313213955,1706959835138,-491.05155667,0.00022883,2]
[313213956,1706959835151,-8.94844333,0.00022883,2]
[313213957,1706959835160,-350.08991071,0.00022883,2]
[313213958,1706959837652,-232.46393345,0.00022784,2]
[313213959,1706959837662,-149.91008929,0.00022883,2]
[313213960,1706959837672,-500.0,0.00022883,2]
[313213961,1706959837681,-500.0,0.00022883,2]
[313213962,1706959837690,-500.0,0.00022883,2]
[313213963,1706959837699,-500.0,0.00022883,2]
[313213964,1706959837709,-598.12775632,0.00022883,2]
[313213965,1706959837720,-100.30224368,0.00022883,2]
[313213966,1706959837730,-506.57,0.00022883,2]
[313213967,1706959837739,-500.0,0.00022883,2]
[313213968,1706959837748,-500.0,0.00022883,2]
[313213969,1706959837757,-162.74157626,0.00022883,2]
[313213970,1706959837819,-337.25842374,0.00022883,2]
[313213971,1706959837830,-665.01035126,0.00022883,2]
[313213972,1706959837877,-639.56964874,0.00022883,2]
[313213973,1706959837887,-759.65,0.00022883,2]
[313213974,1706959837896,-548.67623691,0.00022883,2]
[313213975,1706959837905,-500.0,0.00022883,2]
[313213976,1706959837915,-500.0,0.00022883,2]
[313213977,1706959837924,-500.0,0.00022883,2]
[313213978,1706959837934,-500.0,0.00022883,2]
[313213979,1706959837943,-500.0,0.00022883,2]
[313213980,1706959837952,-500.0,0.00022883,2]
[313213981,1706959837961,-500.0,0.00022883,2]
[313213982,1706959837970,-1438.91,0.00022883,2]
[313213983,1706959837979,-500.0,0.00022883,2]
[313213984,1706959837989,-500.0,0.00022883,2]
[313213985,1706959837998,-500.0,0.00022883,2]
[313213986,1706959838007,-500.0,0.00022883,2]
[313213988,1706959838016,-946.02,0.00022883,2]
[313213990,1706959838025,-500.0,0.00022883,2]
[313213992,1706959838034,-617.74,0.00022883,2]
[313213994,1706959838043,-500.0,0.00022883,2]
[313213996,1706959838052,-537.16,0.00022883,2]
[313213998,1706959838061,-500.0,0.00022883,2]
[313214000,1706959838072,-618.54,0.00022883,2]
[313214002,1706959838081,-500.0,0.00022883,2]
[313214004,1706959838090,-500.0,0.00022883,2]
[313214006,1706959838099,-500.0,0.00022883,2]
[313214008,1706959838108,-500.0,0.00022883,2]
[313214010,1706959838117,-500.0,0.00022883,2]
[313214023,1706959838212,-500.0,0.00022883,2]
[313214025,1706959838242,-500.0,0.00022883,2]
[313214027,1706959838252,-500.0,0.00022883,2]
[313214029,1706959838262,-500.0,0.00022883,2]
[313214031,1706959838271,-10546.25,0.00022883,2]
[313214033,1706959838280,-500.0,0.00022883,2]
[313214035,1706959838290,-555.47,0.00022883,2]
[313214037,1706959838299,-263.03096022,0.00022883,2]
[313214039,1706959838308,-500.0,0.00022883,2]
[313214041,1706959838318,-500.0,0.00022883,2]
[313214043,1706959838328,-500.0,0.00022883,2]
[313214045,1706959838337,-500.0,0.00022883,2]
[313214048,1706959838347,-1526.16,0.00022883,2]
[313214050,1706959838358,-500.0,0.00022883,2]
[313214052,1706959838367,-950.44,0.00022883,2]
[313214054,1706959838377,-500.0,0.00022883,2]
[313214056,1706959838386,-500.0,0.00022883,2]